bitfinex-derivatives/quotes_BTCF0:USTF0_20251130
["timestamp","ask_amount","ask_price","bid_price","bid_amount"]
[1764515812553,0.3826,91441.0,91440.0,0.05733]
[1764515812848,0.40591,91441.0,91440.0,0.05733]
[1764515813451,0.40591,91441.0,91440.0,0.05833]
[1764515813643,0.40791,91441.0,91440.0,0.05833]
[1764515814241,0.11711,91441.0,91440.0,0.05833]
[1764515815954,0.11611,91441.0,91440.0,0.05933]
[1764515816246,0.11611,91441.0,91440.0,0.002]
[1764515816452,0.04511,91440.0,91439.0,0.394057]
[1764515816651,0.18511,91440.0,91439.0,0.416387]
[1764515817753,0.18611,91440.0,91439.0,0.418387]
[1764515819055,0.18511,91440.0,91439.0,0.416387]
[1764515819256,0.18511,91440.0,91439.0,0.417387]
[1764515819656,0.18511,91440.0,91439.0,0.04565]
[1764515819950,0.45717,91440.0,91439.0,0.001]
[1764515820652,0.45717,91440.0,91439.0,0.02232]
[1764515820851,0.0560482,91429.0,91428.0,0.01219263]
[1764515821056,0.04511,91420.0,91419.0,0.405614]
[1764515821354,0.41511,91420.0,91419.0,0.405614]
[1764515821942,0.41511,91420.0,91419.0,0.41895395]
[1764515822957,0.41611,91420.0,91419.0,0.42395395]
[1764515823158,0.41611,91420.0,91419.0,0.42495395]
[1764515827459,0.41611,91420.0,91419.0,0.06415395]
[1764515834164,0.3928,91420.0,91419.0,0.06415395]
[1764515834365,0.371,91420.0,91419.0,0.06415395]
[1764515834556,0.39421,91420.0,91419.0,0.06415395]
[1764515834751,0.417,91420.0,91419.0,0.06415395]
[1764515841880,0.417,91420.0,91419.0,0.07786395]
[1764515847079,0.417,91420.0,91419.0,0.06415395]
[1764515847874,0.417,91420.0,91419.0,0.01950395]
[1764515848376,0.417,91420.0,91419.0,0.04056395]
[1764515848974,0.417,91420.0,91419.0,0.01950395]
[1764515849280,0.417,91420.0,91419.0,0.01112495]
[1764515850666,0.417,91420.0,91419.0,0.03218495]
[1764515851374,0.417,91420.0,91419.0,0.05362495]
[1764515852774,0.417,91420.0,91419.0,0.03218495]
[1764515857084,0.417,91420.0,91419.0,0.05362495]
[1764515872191,0.417,91420.0,91419.0,0.06715495]
[1764515872392,0.087,91420.0,91419.0,0.14584004]
[1764515872591,0.087,91420.0,91419.0,0.06715495]
[1764515874384,0.087,91420.0,91419.0,0.13235872]
[1764515874591,0.08624,91420.0,91419.0,0.01112495]
[1764515875198,0.42624,91420.0,91419.0,0.01112495]
[1764515875988,0.45190333,91420.0,91419.0,0.01112495]
[1764515876294,0.4519017,91420.0,91419.0,0.01112495]
[1764515878996,0.8127017,91420.0,91419.0,0.01112495]
[1764515885499,0.9849417,91420.0,91419.0,0.01112495]
[1764515887403,0.6241417,91420.0,91419.0,0.01112495]
[1764515887611,0.9849417,91420.0,91419.0,0.01112495]
[1764515889111,0.95928,91420.0,91419.0,0.01112495]
[1764515889304,0.98492077,91420.0,91419.0,0.01112495]
[1764515889513,0.04517,91411.0,91410.0,0.000164]
[1764515889704,0.96821,91411.0,91410.0,0.000164]
[1764515890005,0.9791503,91411.0,91410.0,0.000164]
[1764515890408,0.9791503,91411.0,91410.0,0.0148406]
[1764515890608,0.9791503,91411.0,91410.0,0.000164]
[1764515891013,0.9801503,91411.0,91410.0,0.008164]
[1764515892814,0.9791503,91411.0,91410.0,0.01535745]
[1764515893114,0.9801503,91411.0,91410.0,0.001164]
[1764515893415,0.9801503,91411.0,91410.0,0.06125387]
[1764515893913,0.9801503,91411.0,91410.0,0.07388387]
[1764515896403,0.4479103,91411.0,91410.0,0.07388387]
[1764515896610,0.0871103,91411.0,91410.0,0.07388387]
[1764515899515,0.0980403,91411.0,91410.0,0.07388387]
[1764515902306,0.0871,91411.0,91410.0,0.07388387]
[1764515903206,0.0980403,91411.0,91410.0,0.07388387]
[1764515907507,0.4680403,91411.0,91410.0,0.01581387]
[1764515907706,0.4680403,91411.0,91410.0,0.06054387]
[1764515909521,0.1280403,91411.0,91410.0,0.07148427]
[1764515909721,0.1280403,91411.0,91410.0,0.06054387]
[1764515910016,0.3580403,91411.0,91410.0,0.06054387]
[1764515911714,0.3580403,91411.0,91410.0,0.07435387]
[1764515913517,0.1180403,91411.0,91410.0,0.08529427]
[1764515914819,0.1071,91411.0,91410.0,0.08529427]
[1764515916026,0.0971,91411.0,91410.0,0.08529427]
[1764515916423,0.4471,91411.0,91410.0,0.08529427]
[1764515917518,0.401,91411.0,91410.0,0.08529427]
[1764515920225,0.44462,91411.0,91410.0,0.08529427]
[1764515921219,0.42313,91411.0,91410.0,0.08529427]
[1764515921413,0.401,91411.0,91410.0,0.08529427]
[1764515921914,0.02213,91425.0,91424.0,0.0672988]
[1764515922118,0.09362,91425.0,91424.0,0.0672988]
[1764515923024,0.04362,91425.0,91424.0,0.0672988]
[1764515923222,0.04962,91425.0,91424.0,0.0682988]
[1764515925020,0.04462,91425.0,91424.0,0.0682988]
[1764515925522,0.04362,91425.0,91424.0,0.0672988]
[1764515925836,0.04462,91425.0,91424.0,0.0692988]
[1764515926229,0.08462,91425.0,91424.0,0.0692988]
[1764515928423,0.08462,91425.0,91424.0,0.05736]
[1764515929323,0.08362,91425.0,91424.0,0.05736]
[1764515929629,0.08462,91425.0,91424.0,0.05736]
[1764515930922,0.08362,91425.0,91424.0,0.05636]
[1764515931222,0.08462,91425.0,91424.0,0.05736]
[1764515931620,0.08562,91425.0,91424.0,0.05736]
[1764515932230,0.08462,91425.0,91424.0,0.05736]
[1764515932729,0.08362,91425.0,91424.0,0.05636]
[1764515932930,0.08562,91425.0,91424.0,0.05736]
[1764515934429,0.08462,91425.0,91424.0,0.05736]
[1764515935022,0.08562,91425.0,91424.0,0.05736]
[1764515935522,0.08462,91425.0,91424.0,0.05736]
[1764515937134,0.08562,91425.0,91424.0,0.05736]
[1764515937627,0.08362,91425.0,91424.0,0.05636]
[1764515937835,0.08462,91425.0,91424.0,0.05736]
[1764515938133,0.041,91425.0,91424.0,0.05736]
[1764515938334,0.04,91425.0,91424.0,0.05636]
[1764515938531,0.0634,91425.0,91424.0,0.05836]
[1764515938922,0.0624,91425.0,91424.0,0.05636]
[1764515939127,0.08584,91425.0,91424.0,0.05836]
[1764515942932,0.041,91425.0,91424.0,0.05836]
[1764515943634,0.000164,91429.0,91428.0,0.0686883]
[1764515943840,0.19035602,91440.0,91439.0,0.055687]
[1764515944137,0.04484,91440.0,91439.0,0.416487]
[1764515945132,0.04884,91440.0,91439.0,0.417487]
[1764515945526,0.08884,91440.0,91439.0,0.417487]
[1764515946628,0.08884,91440.0,91439.0,0.416487]
[1764515946842,0.08584,91440.0,91439.0,0.417487]
[1764515947343,0.08484,91440.0,91439.0,0.416487]
[1764515947543,0.08584,91440.0,91439.0,0.417487]
[1764515947932,0.08484,91440.0,91439.0,0.416487]
[1764515948134,0.08584,91440.0,91439.0,0.417487]
[1764515949538,0.08484,91440.0,91439.0,0.416487]
[1764515949746,0.04500409,91449.0,91448.0,0.0686859]
[1764515951030,0.08800409,91449.0,91448.0,0.0696859]
[1764515953146,0.08800409,91449.0,91448.0,0.001]
[1764515953147,0.49800409,91449.0,91448.0,0.001]
[1764515953349,0.49800409,91449.0,91448.0,0.02257]
[1764515953642,0.18800409,91449.0,91448.0,0.0566859]
[1764515953844,0.02556409,91449.0,91448.0,0.0695759]
[1764515954050,0.00316409,91449.0,91448.0,0.4303759]
[1764515956435,0.38411,91467.0,91466.0,0.0540837]
[1764515956851,0.19107389,91476.0,91475.0,0.04315]
[1764515957247,0.04566,91476.0,91475.0,0.04315]
[1764515959248,0.05566,91476.0,91475.0,0.04415]
[1764515959651,0.05666,91476.0,91475.0,0.04415]
[1764515960046,0.10666,91476.0,91475.0,0.04415]
[1764515965557,0.08431,91476.0,91475.0,0.04415]
[1764515966657,0.07331,91476.0,91475.0,0.04315]
[1764515966962,0.07431,91476.0,91475.0,0.04715]
[1764515967548,0.001,91476.0,91475.0,0.04715]
[1764515967953,0.40626,91484.0,91483.0,0.0538917]
[1764515970053,0.40726,91484.0,91483.0,0.0548917]
[1764515976168,0.4581916,91484.0,91483.0,0.04396]
[1764515976556,0.40726,91484.0,91483.0,0.0548917]
[1764515976761,0.4681916,91484.0,91483.0,0.0548917]
[1764515977460,0.45726,91484.0,91483.0,0.0548917]
[1764515977965,0.40726,91484.0,91483.0,0.0548917]
[1764515978165,0.44726,91484.0,91483.0,0.0548917]
[1764515980165,0.06343,91484.0,91483.0,0.4156917]
[1764515980675,0.041,91484.0,91483.0,0.4156917]
[1764515980857,0.06343,91484.0,91483.0,0.4156917]
[1764515981563,0.041,91484.0,91483.0,0.4156917]
[1764515985259,0.0229888,91508.0,91483.0,0.4156917]
[1764515985260,0.40555,91502.0,91501.0,0.0538696]
[1764515985768,0.04475,91502.0,91501.0,0.0538696]
[1764515986358,0.04575,91502.0,91501.0,0.0538696]
[1764515986763,0.05175,91502.0,91501.0,0.0548696]
[1764515987166,0.007,91502.0,91501.0,0.0548696]
[1764515987959,0.007,91502.0,91501.0,0.07142718]
[1764515994973,0.02987,91502.0,91501.0,0.07142718]
[1764515995162,0.05175,91502.0,91501.0,0.07142718]
[1764515995768,0.007,91502.0,91501.0,0.07142718]
[1764515997680,0.007,91502.0,91501.0,0.24354718]
[1764515998469,0.14557788,91511.0,91510.0,0.0538685]
[1764515998470,0.19032788,91511.0,91510.0,0.0538685]
[1764515998680,0.04491399,91511.0,91510.0,0.0538685]
[1764515999878,0.05191399,91511.0,91510.0,0.0548685]
[1764516000081,0.05291399,91511.0,91510.0,0.0548685]
[1764516004080,0.00816399,91511.0,91510.0,0.0548685]
[1764516004281,0.40555,91520.0,91519.0,0.0538674]
[1764516004884,0.04475,91520.0,91519.0,0.4146674]
[1764516005475,0.04475,91520.0,91519.0,0.4156674]
[1764516005680,0.04502315,91526.0,91525.0,0.0538667]
[1764516006080,0.08502315,91526.0,91525.0,0.0538667]
[1764516006384,0.04502315,91526.0,91525.0,0.04294]
[1764516007277,0.04602315,91526.0,91525.0,0.04294]
[1764516007788,0.00477775,91526.0,91525.0,0.04394]
[1764516008084,0.001,91526.0,91525.0,0.04394]
[1764516008578,0.03518,91526.0,91525.0,0.04394]
[1764516008778,0.01809,91526.0,91525.0,0.04394]
[1764516009074,0.001,91526.0,91525.0,0.04394]
[1764516010288,0.0001639,91529.0,91528.0,0.04294]
[1764516010481,0.39498,91538.0,91537.0,0.04294]
[1764516010681,0.39498,91538.0,91535.0,0.01382]
[1764516010682,0.37789,91546.0,91545.0,0.05676]
[1764516010997,0.39498,91554.0,91553.0,0.04294]
[1764516011287,0.48498,91554.0,91553.0,0.02148]
[1764516011586,0.03418,91546.0,91545.0,0.04294]
[1764516011782,0.07418,91546.0,91545.0,0.04294]
[1764516011975,0.04918,91546.0,91545.0,0.04294]
[1764516012390,0.03418,91546.0,91545.0,0.05676]
[1764516012885,0.0451043,91545.0,91544.0,0.0001639]
[1764516013187,0.1351043,91545.0,91544.0,0.0001639]
[1764516013386,0.4851043,91545.0,91544.0,0.0001639]
[1764516013586,0.4851043,91545.0,91544.0,0.0216439]
[1764516013781,0.4851043,91545.0,91544.0,0.0437239]
[1764516013987,0.21418,91545.0,91544.0,0.0437239]
[1764516014190,0.07418,91545.0,91544.0,0.0437239]
[1764516014895,0.39418,91545.0,91544.0,0.0001639]
[1764516015092,0.39518,91545.0,91544.0,0.0001639]
[1764516018090,0.03518,91545.0,91544.0,0.0001639]
[1764516018290,0.13518,91545.0,91544.0,0.0001639]
[1764516018796,0.13518,91545.0,91544.0,0.0452339]
[1764516019388,0.42518,91545.0,91544.0,0.0001639]
[1764516024498,0.42518,91545.0,91544.0,0.0460039]
[1764516024499,0.03518,91545.0,91544.0,0.0460039]
[1764516026294,0.08518,91545.0,91544.0,0.0460039]
[1764516026996,0.03518,91545.0,91544.0,0.0460039]
[1764516028397,0.01809,91545.0,91544.0,0.0460039]
[1764516028593,0.001,91545.0,91544.0,0.0460039]
[1764516028897,0.01809,91545.0,91544.0,0.0460039]
[1764516029096,0.03518,91545.0,91544.0,0.0460039]
[1764516030294,0.07518,91545.0,91544.0,0.0460039]
[1764516030599,0.03518,91545.0,91544.0,0.0480039]
[1764516030794,0.41518,91545.0,91544.0,0.0480039]
[1764516031895,0.381,91545.0,91544.0,0.0480039]
[1764516032101,0.001,91545.0,91544.0,0.0480039]
[1764516035588,0.01809,91545.0,91544.0,0.0480039]
[1764516035807,0.07518,91545.0,91544.0,0.0480039]
[1764516035995,0.07518,91545.0,91544.0,0.0021639]
[1764516036694,0.07518,91545.0,91544.0,0.0247839]
[1764516037201,0.07518,91545.0,91544.0,0.0476339]
[1764516037506,0.47518,91545.0,91544.0,0.0021639]
[1764516037692,0.47518,91545.0,91544.0,0.0247839]
[1764516037899,0.47518,91545.0,91544.0,0.0476339]
[1764516041206,0.001,91545.0,91544.0,0.0476339]
[1764516043108,0.001,91545.0,91544.0,0.12622335]
[1764516043311,0.001,91545.0,91544.0,0.0476339]
[1764516043506,0.001,91545.0,91544.0,0.12622335]
[1764516044500,0.08518,91545.0,91544.0,0.0476339]
[1764516045009,0.03518,91545.0,91544.0,0.0476339]
[1764516045512,0.01809,91545.0,91544.0,0.0476339]
[1764516046009,0.001,91545.0,91544.0,0.0476339]
[1764516046610,0.01809,91545.0,91544.0,0.0476339]
[1764516046996,0.03518,91545.0,91544.0,0.0476339]
[1764516049814,0.15518,91545.0,91544.0,0.0476339]
[1764516052917,0.15518,91545.0,91544.0,0.0021639]
[1764516053119,0.15518,91545.0,91544.0,0.0465739]
[1764516053426,0.15518,91545.0,91544.0,0.0574983]
[1764516055716,0.15518,91545.0,91544.0,0.0465739]
[1764516060019,0.48518,91545.0,91544.0,0.0021639]
[1764516060220,0.48518,91545.0,91544.0,0.0250239]
[1764516060423,0.48518,91545.0,91544.0,0.0465739]
[1764516061608,0.48518,91545.0,91544.0,0.0250239]
[1764516062620,0.0451057,91533.0,91532.0,0.10144945]
[1764516062821,0.03418,91519.0,91518.0,0.09831988]
[1764516063027,0.0109285,91510.0,91509.0,0.1370883]
[1764516063214,0.7417285,91510.0,91508.0,0.02802]
[1764516063529,0.7117285,91510.0,91508.0,0.07243]
[1764516064226,0.3608,91509.0,91508.0,0.07243]
[1764516064425,0.7408,91509.0,91508.0,0.07243]
[1764516064722,0.7408,91509.0,91508.0,0.07843]
[1764516064926,0.5008,91509.0,91508.0,0.07843]
[1764516066410,0.5008,91509.0,91508.0,0.07243]
[1764516066617,0.5008,91509.0,91508.0,0.07743]
[1764516067021,0.5008,91509.0,91508.0,0.07243]
[1764516067224,0.0001639,91518.0,91517.0,0.0553377]
[1764516067421,0.0001639,91518.0,91508.0,0.43302]
[1764516067422,0.3608,91537.0,91536.0,0.05704]
[1764516067921,0.4008,91537.0,91536.0,0.05704]
[1764516069019,0.4008,91537.0,91536.0,0.05904]
[1764516071326,0.3608,91537.0,91536.0,0.05904]
[1764516071527,0.4608,91537.0,91536.0,0.05904]
[1764516075225,0.3608,91537.0,91536.0,0.05904]
[1764516075427,0.7308,91537.0,91536.0,0.05904]
[1764516075727,0.6308,91537.0,91536.0,0.03749]
[1764516078936,0.6308,91537.0,91536.0,0.05869]
[1764516081425,0.27,91537.0,91536.0,0.05869]
[1764516081630,0.6308,91537.0,91536.0,0.05869]
[1764516082330,0.6308,91537.0,91536.0,0.03749]
[1764516082520,0.6308,91537.0,91536.0,0.05975]
[1764516082932,0.6308,91537.0,91536.0,0.03701]
[1764516083533,0.6308,91537.0,91536.0,0.05975]
[1764516084035,0.27,91537.0,91536.0,0.05975]
[1764516084226,0.27,91537.0,91536.0,0.01463]
[1764516084622,0.27,91537.0,91536.0,0.002]
[1764516085834,0.27,91537.0,91536.0,0.04712]
[1764516086337,0.27,91537.0,91536.0,0.04512]
[1764516091341,0.27,91537.0,91536.0,0.0560454]
[1764516093844,0.3608,91543.0,91542.0,0.0560447]
[1764516095135,0.3618,91543.0,91542.0,0.0560447]
[1764516095443,0.3638,91543.0,91542.0,0.0560447]
[1764516097342,0.003,91543.0,91542.0,0.0560447]
[1764516098343,0.053,91543.0,91542.0,0.0560447]
[1764516120256,0.003,91543.0,91542.0,0.0560447]
[1764516121046,0.043,91543.0,91542.0,0.0560447]
[1764516123254,0.043,91543.0,91542.0,0.13424026]
[1764516124156,0.043,91543.0,91542.0,0.0560447]
[1764516124549,0.043,91543.0,91542.0,0.13455508]
[1764516124862,0.043,91543.0,91542.0,0.0560447]
[1764516125455,0.043,91543.0,91542.0,0.13455782]
[1764516125657,0.043,91543.0,91542.0,0.0560447]
[1764516126962,0.003,91543.0,91542.0,0.0560447]
[1764516127357,0.073,91543.0,91542.0,0.0560447]
[1764516129555,0.073,91543.0,91542.0,0.04512]
[1764516133254,0.00010897,91546.0,91545.0,0.04547]
[1764516133454,0.3608,91564.0,91563.0,0.0534722]
[1764516133664,0.371722,91564.0,91563.0,0.04255]
[1764516134163,0.3608,91564.0,91563.0,0.04255]
[1764516134359,0.14507582,91573.0,91565.0,0.05539]
[1764516134555,0.0109215,91569.0,91565.0,0.41619]
[1764516134756,0.0109211,91572.0,91565.0,0.41619]
[1764516134956,0.0109214,91570.0,91565.0,0.41619]
[1764516135153,0.0109214,91570.0,91569.0,0.0447]
[1764516135762,0.0509214,91570.0,91569.0,0.0447]
[1764516136262,0.010921,91574.0,91573.0,0.04422]
[1764516136762,0.050921,91574.0,91573.0,0.05860132]
[1764516138154,0.053921,91574.0,91573.0,0.05860132]
[1764516138361,0.054921,91574.0,91573.0,0.05860132]
[1764516139264,0.044,91574.0,91573.0,0.05860132]
[1764516141068,0.444,91574.0,91573.0,0.03543132]
[1764516141860,0.444,91574.0,91573.0,0.05860132]
[1764516145171,0.444,91574.0,91573.0,0.01438132]
[1764516145364,0.0109218,91566.0,91565.0,0.01284]
[1764516145566,0.4109218,91566.0,91565.0,0.03389]
[1764516145767,0.4109218,91566.0,91565.0,0.07185426]
[1764516146767,0.4119218,91566.0,91565.0,0.07185426]
[1764516147378,0.4129218,91566.0,91565.0,0.07185426]
[1764516153283,0.1829218,91566.0,91565.0,0.07185426]
[1764516154478,0.0529218,91566.0,91565.0,0.07185426]
[1764516157282,0.4229218,91566.0,91565.0,0.07185426]
[1764516163087,0.1729218,91566.0,91565.0,0.07185426]
[1764516166588,0.162,91566.0,91565.0,0.08277616]
[1764516167376,0.162,91566.0,91565.0,0.07185426]
[1764516168592,0.162,91566.0,91565.0,0.08277616]
[1764516170091,0.162,91566.0,91565.0,0.44357616]
[1764516170683,0.3608,91576.0,91575.0,0.0541507]
[1764516171782,0.3648,91576.0,91575.0,0.0541507]
[1764516172184,0.3658,91576.0,91575.0,0.0541507]
[1764516172484,0.005,91576.0,91575.0,0.4149507]
[1764516174297,0.50587582,91585.0,91584.0,0.0680297]
[1764516174593,0.3608,91585.0,91584.0,0.0680297]
[1764516175497,0.010919,91590.0,91589.0,0.04323]
[1764516176184,0.3608,91594.0,91593.0,0.04323]
[1764516176392,0.0109172,91605.0,91604.0,0.01388]
[1764516176595,0.4309172,91605.0,91604.0,0.41791]
[1764516176799,0.4309172,91605.0,91604.0,0.37468]
[1764516177288,0.4309172,91605.0,91604.0,0.39675]
[1764516178196,0.4309172,91605.0,91604.0,0.03595]
[1764516178789,0.4319172,91605.0,91604.0,0.03595]
[1764516179096,0.0109176,91601.0,91600.0,0.01388]
[1764516179295,0.0109181,91597.0,91596.0,0.03595]
[1764516179500,0.4309181,91597.0,91596.0,0.05711]
[1764516181092,0.4309181,91597.0,91596.0,0.05911]
[1764516182389,0.0109176,91601.0,91600.0,0.05711]
[1764516182599,0.01,91601.0,91600.0,0.0680277]
[1764516182792,0.0209176,91601.0,91600.0,0.05711]
[1764516183200,0.010918,91598.0,91597.0,0.3608]
[1764516183403,0.450918,91598.0,91597.0,0.38287]
[1764516183590,0.450918,91598.0,91597.0,0.40403]
[1764516184694,0.190918,91598.0,91597.0,0.40403]
[1764516184893,0.18,91598.0,91597.0,0.40503]
[1764516186496,0.18,91598.0,91597.0,0.4159481]
[1764516189904,0.18,91598.0,91597.0,0.40503]
[1764516191200,0.43,91598.0,91597.0,0.40503]
[1764516194809,0.0109179,91600.0,91599.0,0.04454]
[1764516194996,0.3909179,91600.0,91599.0,0.04454]
[1764516195406,0.00027291,91606.0,91605.0,0.05677]
[1764516195612,0.23027291,91606.0,91605.0,0.05677]
[1764516195906,0.24118991,91606.0,91605.0,0.05677]
[1764516197306,0.24218991,91606.0,91605.0,0.05677]
[1764516198098,0.24218991,91606.0,91605.0,0.01296]
[1764516198300,0.0109176,91601.0,91600.0,0.41757]
[1764516198510,0.4409176,91601.0,91600.0,0.41757]
[1764516199996,0.4409176,91601.0,91600.0,0.41857]
[1764516201010,0.0109172,91605.0,91604.0,0.04381]
[1764516201309,0.2309172,91605.0,91604.0,0.04381]
[1764516202310,0.2309172,91605.0,91604.0,0.0547273]
[1764516202909,0.2319172,91605.0,91604.0,0.04381]
[1764516203114,0.2565052,91605.0,91604.0,0.04381]
[1764516207909,0.25777465,91605.0,91604.0,0.04381]
[1764516208915,0.0109176,91601.0,91600.0,0.41755]
[1764516209211,0.4355056,91601.0,91600.0,0.41755]
[1764516209814,0.43726066,91601.0,91600.0,0.41755]
[1764516210205,0.43732075,91601.0,91600.0,0.41855]
[1764516210514,0.43738084,91601.0,91600.0,0.41855]
[1764516211225,0.17646324,91601.0,91600.0,0.4294677]
[1764516211515,0.15187524,91601.0,91600.0,0.4294677]
[1764516212907,0.15193519,91601.0,91600.0,0.4294677]
[1764516213107,0.00193519,91601.0,91600.0,0.4294677]
[1764516213414,0.00027291,91606.0,91605.0,0.06535206]
[1764516213714,0.02488806,91606.0,91605.0,0.06535206]
[1764516214906,0.06488806,91606.0,91605.0,0.06535206]
[1764516215116,0.04027291,91606.0,91605.0,0.06535206]
[1764516215318,0.04127291,91606.0,91605.0,0.06535206]
[1764516216412,0.00127291,91606.0,91605.0,0.06535206]
[1764516216813,0.04127291,91606.0,91605.0,0.06535206]
[1764516217708,0.04127291,91606.0,91605.0,0.05643]
[1764516217709,0.00127291,91606.0,91605.0,0.05643]
[1764516217916,0.39587913,91606.0,91605.0,0.05643]
[1764516218210,0.37127291,91606.0,91605.0,0.05643]
[1764516220420,0.37127291,91606.0,91605.0,0.07483]
[1764516225720,0.39587589,91606.0,91605.0,0.07483]
[1764516231317,0.10587589,91606.0,91605.0,0.07483]
[1764516231816,0.23587589,91606.0,91605.0,0.07483]
[1764516232014,0.02587622,91606.0,91605.0,0.07483]
[1764516232215,0.00127291,91606.0,91605.0,0.07483]
[1764516232415,0.3608,91635.0,91629.0,0.02135]
[1764516232622,0.0109142,91630.0,91629.0,0.02135]
[1764516232819,0.0109147,91626.0,91625.0,0.05643]
[1764516233020,0.3809147,91626.0,91625.0,0.05643]
[1764516233219,0.405516,91626.0,91625.0,0.05643]
[1764516233823,0.405516,91626.0,91625.0,0.06992248]
[1764516235016,0.53106929,91626.0,91625.0,0.01349248]
[1764516235216,0.53106929,91626.0,91623.0,0.0215137]
[1764516235421,0.0109149,91624.0,91623.0,0.0436237]
[1764516235621,0.3955162,91624.0,91623.0,0.0436237]
[1764516236124,0.3955162,91624.0,91623.0,0.05710784]
[1764516237332,0.4005162,91624.0,91623.0,0.05710784]
[1764516240228,0.40049531,91624.0,91623.0,0.05710784]
[1764516244722,0.025,91624.0,91623.0,0.05710784]
[1764516245330,0.395,91624.0,91623.0,0.05710784]
[1764516246737,0.39,91624.0,91623.0,0.01364784]
[1764516246926,0.51844999,91624.0,91623.0,0.01364784]
[1764516247636,0.51844999,91624.0,91623.0,0.03499784]
[1764516250232,0.51844999,91624.0,91623.0,0.01364784]
[1764516250441,0.54301305,91624.0,91623.0,0.01364784]
[1764516252238,0.54301305,91624.0,91623.0,0.03499784]
[1764516252627,0.54301305,91624.0,91623.0,0.05710784]
[1764516254034,0.54301305,91624.0,91623.0,0.07548784]
[1764516258734,0.54301305,91624.0,91623.0,0.03202784]
[1764516259425,0.54301305,91624.0,91623.0,0.05399784]
[1764516261435,0.54301305,91624.0,91623.0,0.07502784]
[1764516262026,0.54301305,91624.0,91612.0,0.01297]
[1764516262230,0.0109158,91616.0,91615.0,0.05597]
[1764516262431,0.48547886,91616.0,91615.0,0.05597]
[1764516262632,0.61196876,91616.0,91615.0,0.04840298]
[1764516263636,0.61196876,91616.0,91615.0,0.06983298]
[1764516270450,0.61196876,91616.0,91615.0,0.04840298]
[1764516271446,0.61196876,91616.0,91615.0,0.06983298]
[1764516283753,0.00016303,91625.0,91624.0,0.05904]
[1764516283944,0.01107783,91625.0,91624.0,0.41984]
[1764516284149,0.09107783,91625.0,91624.0,0.41984]
[1764516284755,0.08016303,91625.0,91624.0,0.41984]
[1764516285555,0.08316303,91625.0,91624.0,0.41984]
[1764516285755,0.09407783,91625.0,91624.0,0.41984]
[1764516288360,0.09407783,91625.0,91624.0,0.4307549]
[1764516288756,0.09407783,91625.0,91624.0,0.41984]
[1764516290962,0.05407783,91625.0,91624.0,0.78064]
[1764516291657,0.05407783,91625.0,91624.0,0.7915549]
[1764516291857,0.05407783,91625.0,91624.0,0.78064]
[1764516292260,0.05407783,91625.0,91624.0,0.7915549]
[1764516295069,0.04316303,91625.0,91624.0,0.7915549]
[1764516295866,0.00316303,91625.0,91624.0,0.7915549]
[1764516297165,0.00016303,91625.0,91624.0,0.7915549]
[1764516298470,0.01118509,91646.0,91645.0,0.04609]
[1764516298772,0.38118509,91646.0,91645.0,0.40689]
[1764516299775,0.38618509,91646.0,91645.0,0.40689]
[1764516300773,0.52920394,91646.0,91645.0,0.3608]
[1764516301273,0.52920394,91646.0,91645.0,0.41984]
[1764516302465,0.38618509,91646.0,91645.0,0.41984]
[1764516306367,0.41072406,91646.0,91645.0,0.41984]
[1764516309874,0.39981176,91646.0,91645.0,0.41984]
[1764516310067,0.37527279,91646.0,91645.0,0.41984]
[1764516311877,0.37327279,91646.0,91645.0,0.41984]
[1764516313371,0.39785703,91646.0,91645.0,0.41984]
[1764516314179,0.37327279,91646.0,91645.0,0.41984]
[1764516324276,0.3976799,91646.0,91645.0,0.41984]
[1764516324472,0.3976799,91646.0,91645.0,0.39693]
[1764516324880,0.3976799,91646.0,91645.0,0.42014]
[1764516326288,0.51186857,91646.0,91645.0,0.3608]
[1764516326888,0.51186857,91646.0,91645.0,0.3822]
[1764516327885,0.51186857,91646.0,91645.0,0.3608]
[1764516332487,0.010913,91640.0,91639.0,0.3608]
[1764516332689,0.40532011,91640.0,91639.0,0.3608]
[1764516332995,0.52595584,91640.0,91639.0,0.3608]
[1764516333492,0.52695584,91640.0,91639.0,0.3608]
[1764516333795,0.52695584,91640.0,91639.0,0.38224]
[1764516335886,0.52695584,91640.0,91639.0,0.40423]
[1764516336496,0.0109133,91637.0,91636.0,0.0001637]
[1764516336794,0.0109133,91637.0,91625.0,0.01333]
[1764516336795,0.0109147,91626.0,91625.0,0.01333]
[1764516336989,0.9637147,91626.0,91625.0,0.01333]
[1764516337185,1.10407621,91626.0,91625.0,0.03477]
[1764516337592,0.0109152,91621.0,91620.0,0.05689]
[1764516337898,0.61118262,91621.0,91620.0,0.05689]
[1764516338799,0.61118262,91621.0,91620.0,0.06089]
[1764516340289,0.58677551,91621.0,91620.0,0.06089]
[1764516341400,0.58677551,91621.0,91620.0,0.05989]
[1764516341601,0.94757551,91621.0,91620.0,0.05989]
[1764516342007,0.94757551,91621.0,91620.0,0.05689]
[1764516342203,0.94757551,91621.0,91620.0,0.05989]
[1764516343509,1.38659551,91621.0,91620.0,0.05989]
[1764516344406,1.38659551,91621.0,91620.0,0.05889]
[1764516349518,0.66499551,91621.0,91620.0,0.05889]
[1764516349814,1.38659551,91621.0,91620.0,0.05889]
[1764516351912,0.66499551,91621.0,91620.0,0.05889]
[1764516352112,1.38659551,91621.0,91620.0,0.05889]
[1764516353318,1.38659551,91621.0,91620.0,0.02344]
[1764516353608,0.0891357,91617.0,91616.0,0.0001637]
[1764516353812,0.6511757,91617.0,91616.0,0.0001637]
[1764516354114,0.6511757,91617.0,91616.0,0.0382537]
[1764516354514,0.6511757,91617.0,91616.0,0.0751837]
[1764516354822,0.77707663,91617.0,91616.0,0.0382537]
[1764516355113,0.77707663,91617.0,91616.0,0.0412537]
[1764516356212,0.77707663,91617.0,91616.0,0.0781837]
[1764516356414,0.77707663,91617.0,91616.0,0.1009937]
[1764516357017,1.13787663,91617.0,91616.0,0.0999937]
[1764516357218,0.77707663,91617.0,91616.0,0.0999937]
[1764516357411,1.13787663,91617.0,91616.0,0.0999937]
[1764516357715,1.13787663,91617.0,91616.0,0.0989937]
[1764516358316,1.13787663,91617.0,91616.0,0.0761837]